[Event "December 12 Early 2023"]
[Site "https://www.chess.com"]
[Date "2023.12.12"]
[Round "4"]
[White "Ljukin, Sergei"]
[Black "Vishnu Prasanna. V"]
[Result "0-1"]
[Board "108"]
[TimeControl "180+1"]
[WhiteFideId "14102200"]
[BlackFideId "5030692"]
[WhiteElo "2490"]
[BlackElo "2658"]
[WhiteTeam "UKR"]
[BlackTeam "IND"]
[WhiteClock "0:00:00"]
[BlackClock "0:00:49"]

1. e4 {[%clk 0:03:00]}  c5 {[%clk 0:02:53]} 2. Nf3 {[%clk 0:03:00]}  e6 {[%clk 0:02:53]} 3. d4 {[%clk 0:03:00]}  cxd4 {[%clk 0:02:54]} 4. Nxd4 {[%clk 0:03:01]}  a6 {[%clk 0:02:54]} 5. Bd3 {[%clk 0:03:00]}  d6 {[%clk 0:02:54]} 6. c4 {[%clk 0:03:00]}  Qc7 {[%clk 0:02:55]} 7. Nc3 {[%clk 0:02:58]}  Nf6 {[%clk 0:02:55]} 8. O-O {[%clk 0:02:58]}  Nbd7 {[%clk 0:02:56]} 9. f4 {[%clk 0:02:58]}  Be7 {[%clk 0:02:56]} 10. Qe2 {[%clk 0:02:56]}  O-O {[%clk 0:02:56]} 11. Bd2 {[%clk 0:02:56]}  b6 {[%clk 0:02:56]} 12. Rae1 {[%clk 0:02:56]}  g6 {[%clk 0:02:56]} 13. Kh1 {[%clk 0:02:50]}  Bb7 {[%clk 0:02:56]} 14. Nf3 {[%clk 0:02:51]}  Rae8 {[%clk 0:02:46]} 15. Ng5 {[%clk 0:02:46]}  Nc5 {[%clk 0:02:43]} 16. Bc2 {[%clk 0:02:43]}  Bd8 {[%clk 0:02:05]} 17. b4 {[%clk 0:02:38]}  Ncd7 {[%clk 0:02:03]} 18. Ba4 {[%clk 0:02:25]}  Nh5 {[%clk 0:01:53]} 19. Nf3 {[%clk 0:01:52]}  Bf6 {[%clk 0:01:38]} 20. g4 {[%clk 0:01:29]}  Nxf4 {[%clk 0:01:37]} 21. Bxf4 {[%clk 0:01:21]}  Bxc3 {[%clk 0:01:38]} 22. Rb1 {[%clk 0:01:08]}  Ne5 {[%clk 0:01:34]} 23. Bxe8 {[%clk 0:01:00]}  Rxe8 {[%clk 0:01:33]} 24. Nxe5 {[%clk 0:00:56]}  dxe5 {[%clk 0:01:31]} 25. Rb3 {[%clk 0:00:18]}  exf4 {[%clk 0:01:03]} 26. Rxc3 {[%clk 0:00:16]}  Qe5 {[%clk 0:01:04]} 27. Rcc1 {[%clk 0:00:06]}  Rd8 {[%clk 0:00:59]} 28. Rcd1 {[%clk 0:00:04]}  Rxd1 {[%clk 0:00:59]} 29. Rxd1 {[%clk 0:00:04]}  f3 {[%clk 0:00:59]} 30. Qf2 {[%clk 0:00:03]}  Qxe4 {[%clk 0:00:57]} 31. Kg1 {[%clk 0:00:03]}  Qxg4+ {[%clk 0:00:56]} 32. Qg3 {[%clk 0:00:02]}  f2+ {[%clk 0:00:55]} 33. Kxf2 {[%clk 0:00:02]}  Qxd1 {[%clk 0:00:55]} 34. Qb8+ {[%clk 0:00:03]}  Kg7 {[%clk 0:00:54]} 35. Qxb7 {[%clk 0:00:03]}  Qd4+ {[%clk 0:00:53]} 36. Kg2 {[%clk 0:00:03]}  Qb2+ {[%clk 0:00:53]} 37. Kg3 {[%clk 0:00:01]}  Qxb4 {[%clk 0:00:54]} 38. Qxa6 {[%clk 0:00:01]}  Qc3+ {[%clk 0:00:54]} 39. Kg2 {[%clk 0:00:01]}  Qd4 {[%clk 0:00:52]} 40. a4 {[%clk 0:00:01]}  h5 {[%clk 0:00:51]} 41. Qb5 {[%clk 0:00:01]}  h4 {[%clk 0:00:50]} 42. c5 {[%clk 0:00:01]}  bxc5 {[%clk 0:00:50]} 43. a5 {[%clk 0:00:02]}  c4 {[%clk 0:00:50]} 44. a6 {[%clk 0:00:02]}  Qe3 {[%clk 0:00:47]} 45. Qxc4 {[%clk 0:00:01]}  h3+ {[%clk 0:00:47]} 46. Kf1 {[%clk 0:00:01]}  Qf3+ {[%clk 0:00:47]} 47. Ke1 {[%clk 0:00:01]}  Qh1+ {[%clk 0:00:48]} 48. Kd2 {[%clk 0:00:01]}  Qxh2+ {[%clk 0:00:49]} 49. Ke3 {[%clk 0:00:01]}  Qg3+ {[%clk 0:00:49]} 50. Ke2 {[%clk 0:00:02]}  Qg2+ {[%clk 0:00:48]} 51. Ke3 {[%clk 0:00:00]}  h2 {[%clk 0:00:49]} 0-1

[Event "December 12 Early 2023"]
[Site "https://www.chess.com"]
[Date "2023.12.12"]
[Round "4"]
[White "Goncalves, Davi Sulzbacher"]
[Black "Wadsworth, Matthew J"]
[Result "0-1"]
[Board "109"]
[TimeControl "180+1"]
[WhiteFideId "2154510"]
[BlackFideId "415804"]
[WhiteElo "2476"]
[BlackElo "2657"]
[WhiteTeam "BRA"]
[BlackTeam "ENG"]
[WhiteClock "0:00:17"]
[BlackClock "0:00:14"]

1. Nf3 {[%clk 0:03:00]}  d5 {[%clk 0:02:57]} 2. d4 {[%clk 0:02:59]}  Nf6 {[%clk 0:02:56]} 3. c4 {[%clk 0:02:59]}  c6 {[%clk 0:02:57]} 4. Nc3 {[%clk 0:02:58]}  a6 {[%clk 0:02:57]} 5. c5 {[%clk 0:02:58]}  g6 {[%clk 0:02:57]} 6. Bf4 {[%clk 0:02:57]}  Nh5 {[%clk 0:02:57]} 7. Bd2 {[%clk 0:02:51]}  Bg7 {[%clk 0:02:54]} 8. Na4 {[%clk 0:02:47]}  Nd7 {[%clk 0:02:52]} 9. Nb6 {[%clk 0:02:41]}  Nxb6 {[%clk 0:02:51]} 10. Ba5 {[%clk 0:02:42]}  Bf5 {[%clk 0:02:28]} 11. e3 {[%clk 0:02:38]}  O-O {[%clk 0:02:27]} 12. Be2 {[%clk 0:02:36]}  Nf6 {[%clk 0:02:27]} 13. Bxb6 {[%clk 0:02:28]}  Qc8 {[%clk 0:02:25]} 14. O-O {[%clk 0:02:26]}  Nd7 {[%clk 0:02:21]} 15. a4 {[%clk 0:02:11]}  Nxb6 {[%clk 0:01:53]} 16. cxb6 {[%clk 0:02:11]}  c5 {[%clk 0:01:53]} 17. Rc1 {[%clk 0:02:09]}  c4 {[%clk 0:01:48]} 18. b3 {[%clk 0:02:10]}  Qc6 {[%clk 0:01:38]} 19. bxc4 {[%clk 0:01:40]}  dxc4 {[%clk 0:01:20]} 20. a5 {[%clk 0:01:40]}  c3 {[%clk 0:01:17]} 21. Qb3 {[%clk 0:01:20]}  Rac8 {[%clk 0:01:11]} 22. Ng5 {[%clk 0:01:15]}  h6 {[%clk 0:01:01]} 23. Bf3 {[%clk 0:01:14]}  Qd7 {[%clk 0:01:00]} 24. Ne4 {[%clk 0:00:44]}  Bxe4 {[%clk 0:00:35]} 25. Bxe4 {[%clk 0:00:45]}  e5 {[%clk 0:00:35]} 26. Rxc3 {[%clk 0:00:27]}  Rxc3 {[%clk 0:00:34]} 27. Qxc3 {[%clk 0:00:26]}  Rc8 {[%clk 0:00:34]} 28. Qd3 {[%clk 0:00:19]}  exd4 {[%clk 0:00:34]} 29. exd4 {[%clk 0:00:19]}  Qxd4 {[%clk 0:00:15]} 30. Qxd4 {[%clk 0:00:19]}  Bxd4 {[%clk 0:00:16]} 31. Bxb7 {[%clk 0:00:19]}  Rc5 {[%clk 0:00:16]} 32. Bxa6 {[%clk 0:00:19]}  Rxa5 {[%clk 0:00:16]} 33. b7 {[%clk 0:00:18]}  Be5 {[%clk 0:00:16]} 34. Re1 {[%clk 0:00:18]}  Rxa6 {[%clk 0:00:14]} 35. Rxe5 {[%clk 0:00:17]}  Ra1+ {[%clk 0:00:14]} 0-1

[Event "December 12 Early 2023"]
[Site "https://www.chess.com"]
[Date "2023.12.12"]
[Round "4"]
[White "Lopusiewicz, Piotr"]
[Black "Koellner, Ruben Gideon"]
[Result "1/2-1/2"]
[Board "113"]
[TimeControl "180+1"]
[WhiteFideId "1116029"]
[BlackFideId "12993093"]
[WhiteElo "2448"]
[BlackElo "2646"]
[WhiteTeam "POL"]
[BlackTeam "GER"]
[WhiteClock "0:00:14"]
[BlackClock "0:00:05"]

1. d4 {[%clk 0:03:00]}  d6 {[%clk 0:03:00]} 2. e4 {[%clk 0:03:00]}  Nf6 {[%clk 0:02:59]} 3. Nc3 {[%clk 0:03:01]}  e5 {[%clk 0:02:59]} 4. Nf3 {[%clk 0:03:00]}  Nbd7 {[%clk 0:02:59]} 5. Bc4 {[%clk 0:03:00]}  Be7 {[%clk 0:02:59]} 6. O-O {[%clk 0:03:00]}  c6 {[%clk 0:03:00]} 7. a4 {[%clk 0:03:00]}  h6 {[%clk 0:03:00]} 8. h3 {[%clk 0:02:59]}  Qc7 {[%clk 0:03:00]} 9. Be3 {[%clk 0:02:56]}  Nf8 {[%clk 0:03:00]} 10. Bb3 {[%clk 0:02:45]}  g5 {[%clk 0:03:00]} 11. Nd2 {[%clk 0:02:39]}  Ng6 {[%clk 0:02:59]} 12. dxe5 {[%clk 0:02:38]}  dxe5 {[%clk 0:03:00]} 13. Nc4 {[%clk 0:02:33]}  g4 {[%clk 0:03:00]} 14. hxg4 {[%clk 0:02:29]}  Bxg4 {[%clk 0:03:01]} 15. f3 {[%clk 0:02:29]}  Be6 {[%clk 0:03:01]} 16. a5 {[%clk 0:02:27]}  h5 {[%clk 0:03:01]} 17. Bg5 {[%clk 0:02:19]}  h4 {[%clk 0:03:01]} 18. Ne3 {[%clk 0:02:19]}  Nh5 {[%clk 0:02:59]} 19. Bxe7 {[%clk 0:02:18]}  Qxe7 {[%clk 0:03:00]} 20. Nf5 {[%clk 0:02:11]}  Qc5+ {[%clk 0:02:59]} 21. Kh2 {[%clk 0:02:07]}  Bxf5 {[%clk 0:02:46]} 22. exf5 {[%clk 0:02:07]}  Ngf4 {[%clk 0:02:47]} 23. Ne4 {[%clk 0:02:03]}  Qe7 {[%clk 0:02:19]} 24. Nd6+ {[%clk 0:01:36]}  Kf8 {[%clk 0:02:19]} 25. Nxf7 {[%clk 0:01:36]}  Rg8 {[%clk 0:02:18]} 26. Rf2 {[%clk 0:01:32]}  h3 {[%clk 0:02:13]} 27. g4 {[%clk 0:01:30]}  Nf6 {[%clk 0:01:55]} 28. Qd6 {[%clk 0:01:28]}  Qxd6 {[%clk 0:01:34]} 29. Nxd6 {[%clk 0:01:28]}  Rg7 {[%clk 0:01:34]} 30. a6 {[%clk 0:01:27]}  b5 {[%clk 0:01:33]} 31. Rd2 {[%clk 0:01:16]}  Rd8 {[%clk 0:01:32]} 32. Rad1 {[%clk 0:01:15]}  Ke7 {[%clk 0:01:04]} 33. Nb7 {[%clk 0:01:02]}  Rxd2+ {[%clk 0:01:03]} 34. Rxd2 {[%clk 0:01:02]}  e4 {[%clk 0:01:03]} 35. fxe4 {[%clk 0:00:59]}  Nxg4+ {[%clk 0:00:59]} 36. Kh1 {[%clk 0:00:57]}  h2 {[%clk 0:00:37]} 37. Nc5 {[%clk 0:00:46]}  Nh3 {[%clk 0:00:37]} 38. Rd7+ {[%clk 0:00:35]}  Kf6 {[%clk 0:00:36]} 39. e5+ {[%clk 0:00:27]}  Kxf5 {[%clk 0:00:35]} 40. Be6+ {[%clk 0:00:26]}  Kxe5 {[%clk 0:00:28]} 41. Bxg4 {[%clk 0:00:26]}  Nf2+ {[%clk 0:00:14]} 42. Kxh2 {[%clk 0:00:26]}  Nxg4+ {[%clk 0:00:14]} 43. Kg3 {[%clk 0:00:27]}  Rxd7 {[%clk 0:00:14]} 44. Nxd7+ {[%clk 0:00:27]}  Kd6 {[%clk 0:00:14]} 45. Kxg4 {[%clk 0:00:25]}  Kxd7 {[%clk 0:00:15]} 46. Kf5 {[%clk 0:00:22]}  c5 {[%clk 0:00:12]} 47. Ke5 {[%clk 0:00:22]}  Kc6 {[%clk 0:00:11]} 48. b3 {[%clk 0:00:20]}  b4 {[%clk 0:00:04]} 49. Ke6 {[%clk 0:00:19]}  Kb6 {[%clk 0:00:04]} 50. Kd5 {[%clk 0:00:19]}  Kb5 {[%clk 0:00:04]} 51. Kd6 {[%clk 0:00:18]}  c4 {[%clk 0:00:03]} 52. bxc4+ {[%clk 0:00:10]}  Kxc4 {[%clk 0:00:03]} 53. Kc6 {[%clk 0:00:11]}  Kc3 {[%clk 0:00:04]} 54. Kb5 {[%clk 0:00:10]}  Kxc2 {[%clk 0:00:01]} 55. Kxb4 {[%clk 0:00:11]}  Kd3 {[%clk 0:00:01]} 56. Kc5 {[%clk 0:00:11]}  Ke4 {[%clk 0:00:02]} 57. Kc6 {[%clk 0:00:12]}  Ke5 {[%clk 0:00:02]} 58. Kb7 {[%clk 0:00:13]}  Kd6 {[%clk 0:00:03]} 59. Kxa7 {[%clk 0:00:14]}  Kc7 {[%clk 0:00:04]} 60. Ka8 {[%clk 0:00:14]}  Kc8 {[%clk 0:00:05]} 61. a7 {[%clk 0:00:14]}  Kc7 {[%clk 0:00:05]} 1/2-1/2

[Event "December 12 Early 2023"]
[Site "https://www.chess.com"]
[Date "2023.12.12"]
[Round "4"]
[White "Kozelov, Roman"]
[Black "Tanriverdi, Enes"]
[Result "1-0"]
[Board "114"]
[TimeControl "180+1"]
[WhiteFideId "14133377"]
[BlackFideId "34543279"]
[WhiteElo "2424"]
[BlackElo "2638"]
[WhiteTeam "UKR"]
[BlackTeam "TUR"]
[WhiteClock "0:01:04"]
[BlackClock "0:00:14"]

1. e4 {[%clk 0:03:00]}  c5 {[%clk 0:02:59]} 2. Nf3 {[%clk 0:03:00]}  e6 {[%clk 0:02:59]} 3. g3 {[%clk 0:02:59]}  Nc6 {[%clk 0:02:59]} 4. Bg2 {[%clk 0:02:59]}  d6 {[%clk 0:02:58]} 5. O-O {[%clk 0:02:59]}  Nf6 {[%clk 0:02:59]} 6. Re1 {[%clk 0:02:58]}  e5 {[%clk 0:02:59]} 7. c3 {[%clk 0:02:58]}  Be7 {[%clk 0:02:58]} 8. h3 {[%clk 0:02:58]}  O-O {[%clk 0:02:58]} 9. d4 {[%clk 0:02:58]}  cxd4 {[%clk 0:02:35]} 10. cxd4 {[%clk 0:02:57]}  h6 {[%clk 0:02:34]} 11. Nc3 {[%clk 0:02:57]}  Bd7 {[%clk 0:02:29]} 12. d5 {[%clk 0:02:51]}  Na5 {[%clk 0:02:29]} 13. b3 {[%clk 0:02:46]}  b5 {[%clk 0:02:27]} 14. Qd3 {[%clk 0:02:25]}  b4 {[%clk 0:02:21]} 15. Nd1 {[%clk 0:02:23]}  Qb6 {[%clk 0:02:17]} 16. Be3 {[%clk 0:02:21]}  Qb7 {[%clk 0:02:17]} 17. Rc1 {[%clk 0:02:13]}  Rfc8 {[%clk 0:02:15]} 18. Nb2 {[%clk 0:02:09]}  Bb5 {[%clk 0:02:13]} 19. Qb1 {[%clk 0:02:01]}  Rxc1 {[%clk 0:02:09]} 20. Bxc1 {[%clk 0:01:58]}  Rc8 {[%clk 0:02:08]} 21. Bd2 {[%clk 0:01:57]}  Ba6 {[%clk 0:01:55]} 22. Nh4 {[%clk 0:01:54]}  Bf8 {[%clk 0:01:40]} 23. Nf5 {[%clk 0:01:52]}  Nd7 {[%clk 0:01:14]} 24. Nd3 {[%clk 0:01:49]}  Bxd3 {[%clk 0:00:50]} 25. Qxd3 {[%clk 0:01:48]}  Nc5 {[%clk 0:00:50]} 26. Qe2 {[%clk 0:01:44]}  Kh7 {[%clk 0:00:34]} 27. Qg4 {[%clk 0:01:39]}  g6 {[%clk 0:00:34]} 28. Nxh6 {[%clk 0:01:37]}  Nd3 {[%clk 0:00:24]} 29. Qh4 {[%clk 0:01:19]}  Nxe1 {[%clk 0:00:21]} 30. Ng4+ {[%clk 0:01:06]}  Kg8 {[%clk 0:00:17]} 31. Nf6+ {[%clk 0:01:05]}  Kg7 {[%clk 0:00:14]} 32. Bh6+ {[%clk 0:01:04]} 1-0

[Event "December 12 Early 2023"]
[Site "https://www.chess.com"]
[Date "2023.12.12"]
[Round "4"]
[White "Ingebretsen, Jens E"]
[Black "Bazilius, Augustinas"]
[Result "0-1"]
[Board "115"]
[TimeControl "180+1"]
[WhiteFideId "1522965"]
[BlackFideId "12832251"]
[WhiteElo "2613"]
[BlackElo "2417"]
[WhiteTeam "NOR"]
[BlackTeam "LTU"]
[WhiteClock "0:00:56"]
[BlackClock "0:00:05"]

1. b3 {[%clk 0:03:00]}  Nf6 {[%clk 0:02:35]} 2. Bb2 {[%clk 0:03:01]}  g6 {[%clk 0:02:35]} 3. e4 {[%clk 0:02:50]}  d6 {[%clk 0:02:33]} 4. Nf3 {[%clk 0:02:49]}  Bg7 {[%clk 0:02:33]} 5. Qe2 {[%clk 0:02:46]}  O-O {[%clk 0:02:30]} 6. Nc3 {[%clk 0:02:47]}  c5 {[%clk 0:02:29]} 7. O-O-O {[%clk 0:02:47]}  Nc6 {[%clk 0:02:25]} 8. h3 {[%clk 0:02:41]}  a6 {[%clk 0:02:17]} 9. d4 {[%clk 0:02:30]}  cxd4 {[%clk 0:02:11]} 10. Nxd4 {[%clk 0:02:31]}  Nxd4 {[%clk 0:02:02]} 11. Rxd4 {[%clk 0:02:32]}  b5 {[%clk 0:02:02]} 12. Nd5 {[%clk 0:02:26]}  Nxd5 {[%clk 0:01:45]} 13. Rxd5 {[%clk 0:02:27]}  Qa5 {[%clk 0:01:37]} 14. Bxg7 {[%clk 0:02:24]}  Kxg7 {[%clk 0:01:38]} 15. Kb2 {[%clk 0:02:21]}  Be6 {[%clk 0:01:34]} 16. Qd2 {[%clk 0:02:20]}  Qc7 {[%clk 0:01:23]} 17. Rd3 {[%clk 0:02:18]}  a5 {[%clk 0:01:15]} 18. Qc3+ {[%clk 0:02:18]}  Qxc3+ {[%clk 0:01:14]} 19. Rxc3 {[%clk 0:02:19]}  b4 {[%clk 0:00:55]} 20. Rc7 {[%clk 0:02:19]}  Kf6 {[%clk 0:00:56]} 21. Bc4 {[%clk 0:02:19]}  Rfc8 {[%clk 0:00:53]} 22. Rxc8 {[%clk 0:02:18]}  Rxc8 {[%clk 0:00:54]} 23. Bd3 {[%clk 0:02:15]}  Ke5 {[%clk 0:00:52]} 24. a3 {[%clk 0:02:12]}  Rc3 {[%clk 0:00:42]} 25. axb4 {[%clk 0:02:10]}  axb4 {[%clk 0:00:43]} 26. Rd1 {[%clk 0:02:04]}  g5 {[%clk 0:00:36]} 27. g3 {[%clk 0:01:43]}  Bxh3 {[%clk 0:00:26]} 28. Rh1 {[%clk 0:01:44]}  Be6 {[%clk 0:00:09]} 29. Rxh7 {[%clk 0:01:42]}  Bxb3 {[%clk 0:00:10]} 30. Rh5 {[%clk 0:01:42]}  f6 {[%clk 0:00:02]} 31. f4+ {[%clk 0:01:42]}  Kd4 {[%clk 0:00:03]} 32. fxg5 {[%clk 0:01:40]}  fxg5 {[%clk 0:00:04]} 33. Rxg5 {[%clk 0:01:40]}  Bc4 {[%clk 0:00:03]} 34. Bxc4 {[%clk 0:01:37]}  Rxc4 {[%clk 0:00:04]} 35. Rg7 {[%clk 0:01:31]}  e5 {[%clk 0:00:04]} 36. Rd7 {[%clk 0:01:29]}  Rc6 {[%clk 0:00:05]} 37. Rb7 {[%clk 0:01:29]}  Rc4 {[%clk 0:00:03]} 38. Rb6 {[%clk 0:01:29]}  Kxe4 {[%clk 0:00:03]} 39. Rxd6 {[%clk 0:01:29]}  Kf3 {[%clk 0:00:03]} 40. Rg6 {[%clk 0:01:29]}  e4 {[%clk 0:00:03]} 41. Kb3 {[%clk 0:01:24]}  Rc3+ {[%clk 0:00:03]} 42. Kxb4 {[%clk 0:01:20]}  Rxc2 {[%clk 0:00:03]} 43. Kb3 {[%clk 0:01:21]}  Rc7 {[%clk 0:00:02]} 44. g4 {[%clk 0:01:16]}  e3 {[%clk 0:00:03]} 45. Re6 {[%clk 0:01:15]}  e2 {[%clk 0:00:02]} 46. Kb2 {[%clk 0:01:09]}  Rg7 {[%clk 0:00:02]} 47. Kc2 {[%clk 0:01:08]}  Rxg4 {[%clk 0:00:01]} 48. Kd2 {[%clk 0:01:09]}  Rd4+ {[%clk 0:00:02]} 49. Kc2 {[%clk 0:01:04]}  Rd1 {[%clk 0:00:02]} 50. Rf6+ {[%clk 0:01:03]}  Kg4 {[%clk 0:00:02]} 51. Rg6+ {[%clk 0:00:51]}  Kf5 {[%clk 0:00:03]} 52. Rd6 {[%clk 0:00:51]}  e1=Q {[%clk 0:00:03]} 53. Rxd1 {[%clk 0:00:52]}  Qe4+ {[%clk 0:00:03]} 54. Rd3 {[%clk 0:00:52]}  Qa4+ {[%clk 0:00:04]} 55. Kc3 {[%clk 0:00:52]}  Ke4 {[%clk 0:00:03]} 56. Rd2 {[%clk 0:00:51]}  Qa3+ {[%clk 0:00:03]} 57. Kc2 {[%clk 0:00:52]}  Ke3 {[%clk 0:00:03]} 58. Rd1 {[%clk 0:00:50]}  Qa4+ {[%clk 0:00:03]} 59. Kc1 {[%clk 0:00:50]}  Qc4+ {[%clk 0:00:03]} 60. Kb2 {[%clk 0:00:49]}  Ke2 {[%clk 0:00:03]} 61. Rc1 {[%clk 0:00:50]}  Qb4+ {[%clk 0:00:04]} 62. Kc2 {[%clk 0:00:51]}  Qc5+ {[%clk 0:00:03]} 63. Kb1 {[%clk 0:00:51]}  Qb6+ {[%clk 0:00:03]} 64. Kc2 {[%clk 0:00:52]}  Qc7+ {[%clk 0:00:03]} 65. Kb2 {[%clk 0:00:53]}  Qb7+ {[%clk 0:00:04]} 66. Kc2 {[%clk 0:00:54]}  Qe4+ {[%clk 0:00:04]} 67. Kb2 {[%clk 0:00:54]}  Kd2 {[%clk 0:00:04]} 68. Rc3 {[%clk 0:00:53]}  Qd4 {[%clk 0:00:03]} 69. Ka2 {[%clk 0:00:53]}  Qxc3 {[%clk 0:00:03]} 70. Kb1 {[%clk 0:00:53]}  Qc2+ {[%clk 0:00:03]} 71. Ka1 {[%clk 0:00:54]}  Qc4 {[%clk 0:00:03]} 72. Kb1 {[%clk 0:00:55]}  Qb5+ {[%clk 0:00:03]} 73. Ka1 {[%clk 0:00:56]}  Kc2 {[%clk 0:00:04]} 74. Ka2 {[%clk 0:00:56]}  Qb2# {[%clk 0:00:05]} 0-1

[Event "December 12 Early 2023"]
[Site "https://www.chess.com"]
[Date "2023.12.12"]
[Round "4"]
[White "Andreev, Konstantin"]
[Black "Rose, Felix"]
[Result "1-0"]
[Board "117"]
[TimeControl "180+1"]
[WhiteFideId "24239305"]
[BlackFideId "5105722"]
[WhiteElo "2561"]
[BlackElo "2317"]
[WhiteTeam "ITA"]
[BlackTeam "MEX"]
[WhiteClock "0:00:26"]
[BlackClock "0:00:00"]

1. e4 {[%clk 0:03:00]}  e5 {[%clk 0:02:58]} 2. Nf3 {[%clk 0:02:57]}  Nc6 {[%clk 0:02:58]} 3. Bc4 {[%clk 0:02:58]}  Nf6 {[%clk 0:02:58]} 4. d4 {[%clk 0:02:58]}  exd4 {[%clk 0:02:58]} 5. e5 {[%clk 0:02:59]}  d5 {[%clk 0:02:58]} 6. Bb5 {[%clk 0:03:00]}  Ne4 {[%clk 0:02:58]} 7. Nxd4 {[%clk 0:03:00]}  Bc5 {[%clk 0:02:59]} 8. O-O {[%clk 0:02:58]}  O-O {[%clk 0:02:59]} 9. Bxc6 {[%clk 0:02:59]}  bxc6 {[%clk 0:02:59]} 10. Be3 {[%clk 0:03:00]}  Qe8 {[%clk 0:02:49]} 11. f3 {[%clk 0:02:58]}  Nf6 {[%clk 0:02:41]} 12. f4 {[%clk 0:02:56]}  Ne4 {[%clk 0:02:25]} 13. Nd2 {[%clk 0:02:54]}  Nxd2 {[%clk 0:02:20]} 14. Qxd2 {[%clk 0:02:55]}  f6 {[%clk 0:02:20]} 15. exf6 {[%clk 0:02:52]}  Rxf6 {[%clk 0:02:19]} 16. Rae1 {[%clk 0:02:53]}  Ba6 {[%clk 0:01:42]} 17. Rf2 {[%clk 0:02:51]}  Qf7 {[%clk 0:01:40]} 18. Qa5 {[%clk 0:02:37]}  Bb5 {[%clk 0:01:13]} 19. Nxb5 {[%clk 0:02:05]}  Bxe3 {[%clk 0:01:12]} 20. Rxe3 {[%clk 0:02:06]}  cxb5 {[%clk 0:01:10]} 21. Qxb5 {[%clk 0:02:07]}  c6 {[%clk 0:01:07]} 22. Qb4 {[%clk 0:02:04]}  Re8 {[%clk 0:01:01]} 23. Qd4 {[%clk 0:01:52]}  h6 {[%clk 0:00:55]} 24. Kf1 {[%clk 0:01:30]}  Rxe3 {[%clk 0:00:54]} 25. Qxe3 {[%clk 0:01:29]}  Re6 {[%clk 0:00:55]} 26. Qd2 {[%clk 0:01:30]}  Qh5 {[%clk 0:00:48]} 27. h3 {[%clk 0:01:28]}  Qe8 {[%clk 0:00:44]} 28. Re2 {[%clk 0:01:28]}  Re4 {[%clk 0:00:42]} 29. Rxe4 {[%clk 0:01:25]}  Qxe4 {[%clk 0:00:42]} 30. Kf2 {[%clk 0:01:24]}  a5 {[%clk 0:00:38]} 31. c3 {[%clk 0:01:21]}  a4 {[%clk 0:00:37]} 32. g3 {[%clk 0:01:13]}  Qh1 {[%clk 0:00:32]} 33. Qe2 {[%clk 0:01:05]}  Qh2+ {[%clk 0:00:23]} 34. Kf3 {[%clk 0:01:05]}  Qxh3 {[%clk 0:00:21]} 35. Qe8+ {[%clk 0:01:00]}  Kh7 {[%clk 0:00:21]} 36. Qxc6 {[%clk 0:01:01]}  Qh1+ {[%clk 0:00:19]} 37. Kg4 {[%clk 0:00:52]}  Qd1+ {[%clk 0:00:15]} 38. Kf5 {[%clk 0:00:50]}  Qd3+ {[%clk 0:00:07]} 39. Ke5 {[%clk 0:00:48]}  Qe4+ {[%clk 0:00:07]} 40. Kd6 {[%clk 0:00:47]}  Qg6+ {[%clk 0:00:05]} 41. Kc5 {[%clk 0:00:47]}  Qc2 {[%clk 0:00:03]} 42. Qxa4 {[%clk 0:00:43]}  Qxb2 {[%clk 0:00:03]} 43. Kxd5 {[%clk 0:00:41]}  Qxc3 {[%clk 0:00:03]} 44. g4 {[%clk 0:00:30]}  Qd2+ {[%clk 0:00:03]} 45. Ke5 {[%clk 0:00:28]}  Qb2+ {[%clk 0:00:03]} 46. Ke6 {[%clk 0:00:26]}  Qe2+ {[%clk 0:00:00]} 47. Kf5 {[%clk 0:00:26]} 1-0

[Event "December 12 Early 2023"]
[Site "https://www.chess.com"]
[Date "2023.12.12"]
[Round "4"]
[White "Mizzi, Jack"]
[Black "Aaditya Dhingra"]
[Result "0-1"]
[Board "122"]
[TimeControl "180+1"]
[WhiteFideId "5602521"]
[BlackFideId "25678191"]
[WhiteElo "2439"]
[BlackElo "2678"]
[WhiteTeam "MLT"]
[BlackTeam "IND"]
[WhiteClock "0:00:00"]
[BlackClock "0:00:56"]

1. d4 {[%clk 0:03:00]}  g6 {[%clk 0:02:58]} 2. c4 {[%clk 0:03:01]}  Bg7 {[%clk 0:02:59]} 3. g3 {[%clk 0:03:01]}  c5 {[%clk 0:02:57]} 4. d5 {[%clk 0:03:01]}  b5 {[%clk 0:02:56]} 5. cxb5 {[%clk 0:02:59]}  a6 {[%clk 0:02:55]} 6. bxa6 {[%clk 0:02:58]}  Bxa6 {[%clk 0:02:54]} 7. Bg2 {[%clk 0:02:57]}  d6 {[%clk 0:02:54]} 8. Nf3 {[%clk 0:02:55]}  Nf6 {[%clk 0:02:55]} 9. O-O {[%clk 0:02:53]}  O-O {[%clk 0:02:55]} 10. Nc3 {[%clk 0:02:35]}  Qb6 {[%clk 0:02:49]} 11. Qc2 {[%clk 0:02:23]}  Bb7 {[%clk 0:02:49]} 12. Nd2 {[%clk 0:02:22]}  Na6 {[%clk 0:02:48]} 13. Nc4 {[%clk 0:02:16]}  Qd8 {[%clk 0:02:42]} 14. a3 {[%clk 0:02:11]}  Nb4 {[%clk 0:02:28]} 15. Qb3 {[%clk 0:02:02]}  Bxd5 {[%clk 0:02:21]} 16. Nxd5 {[%clk 0:01:57]}  Nbxd5 {[%clk 0:02:20]} 17. Bd2 {[%clk 0:01:38]}  Rb8 {[%clk 0:02:18]} 18. Qc2 {[%clk 0:01:34]}  Qc7 {[%clk 0:02:10]} 19. Rab1 {[%clk 0:01:30]}  Qa7 {[%clk 0:02:07]} 20. Rfd1 {[%clk 0:01:29]}  Rfc8 {[%clk 0:02:06]} 21. Na5 {[%clk 0:01:21]}  Qd7 {[%clk 0:02:01]} 22. Be1 {[%clk 0:01:17]}  Nb6 {[%clk 0:01:59]} 23. e4 {[%clk 0:01:11]}  Qb5 {[%clk 0:01:54]} 24. Bf1 {[%clk 0:01:04]}  Qa4 {[%clk 0:01:44]} 25. b3 {[%clk 0:00:56]}  Qxe4 {[%clk 0:01:43]} 26. Qxe4 {[%clk 0:00:20]}  Nxe4 {[%clk 0:01:44]} 27. Bg2 {[%clk 0:00:18]}  Nc3 {[%clk 0:01:29]} 28. Bxc3 {[%clk 0:00:17]}  Bxc3 {[%clk 0:01:30]} 29. Nc6 {[%clk 0:00:17]}  Rb7 {[%clk 0:01:30]} 30. Rd3 {[%clk 0:00:16]}  Bg7 {[%clk 0:01:28]} 31. b4 {[%clk 0:00:14]}  c4 {[%clk 0:01:27]} 32. Re3 {[%clk 0:00:13]}  Kf8 {[%clk 0:01:22]} 33. b5 {[%clk 0:00:08]}  d5 {[%clk 0:01:19]} 34. Rd1 {[%clk 0:00:07]}  e6 {[%clk 0:01:19]} 35. h4 {[%clk 0:00:05]}  h5 {[%clk 0:01:18]} 36. Bh3 {[%clk 0:00:03]}  Na4 {[%clk 0:01:17]} 37. g4 {[%clk 0:00:02]}  Nc3 {[%clk 0:01:13]} 38. Rc1 {[%clk 0:00:01]}  Nxb5 {[%clk 0:01:11]} 39. Ne5 {[%clk 0:00:01]}  hxg4 {[%clk 0:01:10]} 40. Bxg4 {[%clk 0:00:01]}  Bh6 {[%clk 0:01:08]} 41. f4 {[%clk 0:00:01]}  Bxf4 {[%clk 0:01:07]} 42. Nxg6+ {[%clk 0:00:01]}  fxg6 {[%clk 0:01:07]} 43. Rf1 {[%clk 0:00:02]}  Rf7 {[%clk 0:00:58]} 44. Ref3 {[%clk 0:00:00]}  e5 {[%clk 0:00:56]} 0-1